[Event "Titled Tuesday Blitz October 11 Late 2022"]
[White "Czernek, Tymon"]
[Black "Mazurkiewicz, Michal"]
[WhiteFideId "1199510"]
[BlackFideId "1124943"]
[WhiteElo "2240"]
[BlackElo "2063"]
[Result "0-1"]
[Round "06"]
[TimeControl "180+1"]
[Date "2022.10.12"]
[WhiteClock "0:00:09"]
[BlackClock "0:00:09"]

1. e4 {[%clk 0:03:00]}  d6 {[%clk 0:02:58]} 2. d4 {[%clk 0:03:00]}  Nf6 {[%clk 0:02:59]} 3. Nc3 {[%clk 0:03:00]}  c6 {[%clk 0:02:59]} 4. f4 {[%clk 0:03:00]}  Qb6 {[%clk 0:02:59]} 5. Nf3 {[%clk 0:03:00]}  Bg4 {[%clk 0:02:59]} 6. Be2 {[%clk 0:03:00]}  Nbd7 {[%clk 0:02:58]} 7. a3 {[%clk 0:02:53]}  e5 {[%clk 0:02:54]} 8. fxe5 {[%clk 0:02:53]}  dxe5 {[%clk 0:02:53]} 9. Be3 {[%clk 0:02:49]}  O-O-O {[%clk 0:02:47]} 10. O-O {[%clk 0:02:45]}  Bxf3 {[%clk 0:02:41]} 11. Rxf3 {[%clk 0:02:36]}  exd4 {[%clk 0:02:42]} 12. Bxd4 {[%clk 0:02:37]}  Bc5 {[%clk 0:02:41]} 13. Bxc5 {[%clk 0:02:37]}  Nxc5 {[%clk 0:02:40]} 14. Qf1 {[%clk 0:02:22]}  Ncxe4+ {[%clk 0:02:36]} 15. Kh1 {[%clk 0:02:19]}  Nd2 {[%clk 0:02:36]} 16. Qc1 {[%clk 0:02:14]}  Nxf3 {[%clk 0:02:36]} 17. Bxf3 {[%clk 0:02:15]}  h5 {[%clk 0:02:33]} 18. a4 {[%clk 0:02:10]}  Ng4 {[%clk 0:02:30]} 19. h3 {[%clk 0:02:11]}  Nf2+ {[%clk 0:02:26]} 20. Kh2 {[%clk 0:02:11]}  Qc7+ {[%clk 0:02:24]} 21. Kg1 {[%clk 0:02:11]}  Qg3 {[%clk 0:02:23]} 22. Qe3 {[%clk 0:02:02]}  Nxh3+ {[%clk 0:02:17]} 23. Kf1 {[%clk 0:02:02]}  Ng5 {[%clk 0:01:48]} 24. Ne2 {[%clk 0:01:48]}  Qh4 {[%clk 0:01:31]} 25. g3 {[%clk 0:01:36]}  Qh3+ {[%clk 0:01:12]} 26. Bg2 {[%clk 0:01:35]}  Qf5+ {[%clk 0:01:11]} 27. Nf4 {[%clk 0:01:35]}  Kb8 {[%clk 0:01:01]} 28. Kg1 {[%clk 0:01:29]}  h4 {[%clk 0:00:58]} 29. Nd3 {[%clk 0:01:17]}  h3 {[%clk 0:00:54]} 30. Rf1 {[%clk 0:01:11]}  Qe6 {[%clk 0:00:44]} 31. Qf4+ {[%clk 0:00:38]}  Qd6 {[%clk 0:00:44]} 32. Qxg5 {[%clk 0:00:36]}  hxg2 {[%clk 0:00:44]} 33. Kxg2 {[%clk 0:00:37]}  Qd5+ {[%clk 0:00:43]} 34. Qxd5 {[%clk 0:00:37]}  Rxd5 {[%clk 0:00:43]} 35. Rxf7 {[%clk 0:00:38]}  g5 {[%clk 0:00:34]} 36. b4 {[%clk 0:00:35]}  a5 {[%clk 0:00:33]} 37. bxa5 {[%clk 0:00:19]}  Rxa5 {[%clk 0:00:33]} 38. Rg7 {[%clk 0:00:19]}  Re8 {[%clk 0:00:26]} 39. Kf3 {[%clk 0:00:19]}  Rf5+ {[%clk 0:00:24]} 40. Kg4 {[%clk 0:00:19]}  Ra5 {[%clk 0:00:22]} 41. Rxg5 {[%clk 0:00:18]}  Rxa4+ {[%clk 0:00:22]} 42. Kf3 {[%clk 0:00:18]}  Rc4 {[%clk 0:00:21]} 43. Rc5 {[%clk 0:00:17]}  Rxc5 {[%clk 0:00:20]} 44. Nxc5 {[%clk 0:00:18]}  Kc7 {[%clk 0:00:18]} 45. g4 {[%clk 0:00:18]}  b6 {[%clk 0:00:18]} 46. Ne4 {[%clk 0:00:17]}  c5 {[%clk 0:00:17]} 47. g5 {[%clk 0:00:16]}  Kc6 {[%clk 0:00:16]} 48. Nf6 {[%clk 0:00:16]}  Re6 {[%clk 0:00:12]} 49. Kf4 {[%clk 0:00:14]}  Re2 {[%clk 0:00:12]} 50. g6 {[%clk 0:00:13]}  Rf2+ {[%clk 0:00:12]} 51. Kg5 {[%clk 0:00:13]}  Rg2+ {[%clk 0:00:10]} 52. Ng4 {[%clk 0:00:13]}  Rd2 {[%clk 0:00:10]} 53. g7 {[%clk 0:00:07]}  Rd8 {[%clk 0:00:10]} 54. Kf6 {[%clk 0:00:06]}  b5 {[%clk 0:00:07]} 55. Kf7 {[%clk 0:00:06]}  c4 {[%clk 0:00:06]} 56. Nf6 {[%clk 0:00:06]}  b4 {[%clk 0:00:06]} 57. Ne8 {[%clk 0:00:06]}  Rd7+ {[%clk 0:00:06]} 58. Kf8 {[%clk 0:00:07]}  Rxg7 {[%clk 0:00:07]} 59. Nxg7 {[%clk 0:00:07]}  b3 {[%clk 0:00:08]} 60. cxb3 {[%clk 0:00:07]}  cxb3 {[%clk 0:00:09]} 61. Nf5 {[%clk 0:00:08]}  b2 {[%clk 0:00:08]} 62. Nd4+ {[%clk 0:00:09]}  Kd5 {[%clk 0:00:09]} 63. Ne2 {[%clk 0:00:09]}  Kc4 {[%clk 0:00:09]} 0-1


[Site "https://www.chess.com"]

[Event "Titled Tuesday Blitz October 11 Late 2022"]
[White "D`Arruda, Ricardo D."]
[Black "Eisa Mohmood, Alkhoori"]
[WhiteFideId "100692"]
[BlackFideId "9316116"]
[WhiteElo "2451"]
[BlackElo "1245"]
[Result "0-1"]
[Round "06"]
[TimeControl "180+1"]
[Date "2022.10.12"]
[WhiteClock "0:02:19"]
[BlackClock "0:02:49"]

1. d4 {[%clk 0:02:42]}  Nf6 {[%clk 0:02:57]} 2. Nf3 {[%clk 0:02:42]}  g6 {[%clk 0:02:58]} 3. Nc3 {[%clk 0:02:42]}  Bg7 {[%clk 0:02:59]} 4. e4 {[%clk 0:02:42]}  d6 {[%clk 0:02:59]} 5. Bg5 {[%clk 0:02:42]}  O-O {[%clk 0:03:00]} 6. Qd2 {[%clk 0:02:41]}  Nc6 {[%clk 0:02:59]} 7. d5 {[%clk 0:02:41]}  Ne5 {[%clk 0:02:57]} 8. Nxe5 {[%clk 0:02:40]}  dxe5 {[%clk 0:02:58]} 9. Bh6 {[%clk 0:02:39]}  Ne8 {[%clk 0:02:59]} 10. h4 {[%clk 0:02:36]}  Bxh6 {[%clk 0:02:55]} 11. Qxh6 {[%clk 0:02:36]}  f6 {[%clk 0:02:55]} 12. O-O-O {[%clk 0:02:27]}  Nd6 {[%clk 0:02:54]} 13. Be2 {[%clk 0:02:22]}  Bd7 {[%clk 0:02:54]} 14. f4 {[%clk 0:02:19]}  Nf7 {[%clk 0:02:49]} 0-1


[Site "https://www.chess.com"]

[Event "Titled Tuesday Blitz October 11 Late 2022"]
[White "Danielyan, Vahe"]
[Black "Rubio Tent, Francisco"]
[WhiteFideId "13304828"]
[BlackFideId "2238233"]
[WhiteElo "2421"]
[BlackElo "2211"]
[Result "1-0"]
[Round "06"]
[TimeControl "180+1"]
[Date "2022.10.12"]
[WhiteClock "0:01:55"]
[BlackClock "0:00:01"]

1. e4 {[%clk 0:03:00]}  c6 {[%clk 0:03:00]} 2. d3 {[%clk 0:02:53]}  d5 {[%clk 0:03:00]} 3. Nd2 {[%clk 0:02:54]}  g6 {[%clk 0:03:00]} 4. Ngf3 {[%clk 0:02:53]}  Bg7 {[%clk 0:03:01]} 5. h4 {[%clk 0:02:53]}  h6 {[%clk 0:02:59]} 6. h5 {[%clk 0:02:53]}  g5 {[%clk 0:02:59]} 7. Be2 {[%clk 0:02:54]}  Bg4 {[%clk 0:02:53]} 8. e5 {[%clk 0:02:51]}  Nd7 {[%clk 0:02:47]} 9. d4 {[%clk 0:02:51]}  c5 {[%clk 0:02:41]} 10. c3 {[%clk 0:02:52]}  e6 {[%clk 0:02:41]} 11. Qa4 {[%clk 0:02:41]}  Ne7 {[%clk 0:02:34]} 12. dxc5 {[%clk 0:02:40]}  Bxf3 {[%clk 0:02:34]} 13. Nxf3 {[%clk 0:02:41]}  Nc6 {[%clk 0:02:32]} 14. Be3 {[%clk 0:02:40]}  Qc7 {[%clk 0:02:11]} 15. Rd1 {[%clk 0:02:38]}  O-O {[%clk 0:02:07]} 16. O-O {[%clk 0:02:33]}  Ncxe5 {[%clk 0:02:05]} 17. Nxe5 {[%clk 0:02:33]}  Bxe5 {[%clk 0:01:54]} 18. b4 {[%clk 0:02:28]}  Bxc3 {[%clk 0:01:42]} 19. Bd3 {[%clk 0:02:11]}  Bg7 {[%clk 0:01:40]} 20. Bb1 {[%clk 0:02:10]}  Nf6 {[%clk 0:01:31]} 21. Qc2 {[%clk 0:02:09]}  Rfd8 {[%clk 0:01:24]} 22. f4 {[%clk 0:02:09]}  Ne4 {[%clk 0:01:17]} 23. fxg5 {[%clk 0:02:07]}  hxg5 {[%clk 0:01:18]} 24. Qe2 {[%clk 0:02:04]}  Nc3 {[%clk 0:00:56]} 25. Qd3 {[%clk 0:02:01]}  Nxd1 {[%clk 0:00:54]} 26. Qh7+ {[%clk 0:01:59]}  Kf8 {[%clk 0:00:54]} 27. h6 {[%clk 0:02:00]}  Be5 {[%clk 0:00:23]} 28. Rxd1 {[%clk 0:02:00]}  f5 {[%clk 0:00:16]} 29. Qg6 {[%clk 0:01:57]}  Qf7 {[%clk 0:00:15]} 30. Qxg5 {[%clk 0:01:58]}  Bf6 {[%clk 0:00:14]} 31. Qg3 {[%clk 0:01:55]}  d4 {[%clk 0:00:14]} 32. Bf4 {[%clk 0:01:55]}  Ke7 {[%clk 0:00:08]} 33. Bd6+ {[%clk 0:01:56]}  Ke8 {[%clk 0:00:05]} 34. Bd3 {[%clk 0:01:57]}  a6 {[%clk 0:00:05]} 35. Re1 {[%clk 0:01:56]}  Kd7 {[%clk 0:00:05]} 36. Qf3 {[%clk 0:01:55]}  Kc8 {[%clk 0:00:05]} 37. Rxe6 {[%clk 0:01:56]}  Qxe6 {[%clk 0:00:02]} 38. Bxf5 {[%clk 0:01:56]}  Re8 {[%clk 0:00:03]} 39. Bxe6+ {[%clk 0:01:55]}  Rxe6 {[%clk 0:00:03]} 40. Qd5 {[%clk 0:01:55]}  Re1+ {[%clk 0:00:01]} 41. Kf2 {[%clk 0:01:55]} 1-0


[Site "https://www.chess.com"]

[Event "Titled Tuesday Blitz October 11 Late 2022"]
[White "Dardha, Arben"]
[Black "Borawski, Jakub"]
[WhiteFideId "4700481"]
[BlackFideId "1143000"]
[WhiteElo "2196"]
[BlackElo "2122"]
[Result "1-0"]
[Round "06"]
[TimeControl "180+1"]
[Date "2022.10.12"]
[WhiteClock "0:02:20"]
[BlackClock "0:01:01"]

1. e4 {[%clk 0:03:00]}  e6 {[%clk 0:03:00]} 2. d4 {[%clk 0:02:58]}  d5 {[%clk 0:03:00]} 3. Nd2 {[%clk 0:02:57]}  c5 {[%clk 0:02:59]} 4. Ngf3 {[%clk 0:02:54]}  Nf6 {[%clk 0:02:53]} 5. exd5 {[%clk 0:02:54]}  exd5 {[%clk 0:02:51]} 6. Bb5+ {[%clk 0:02:54]}  Bd7 {[%clk 0:02:51]} 7. Qe2+ {[%clk 0:02:53]}  Be7 {[%clk 0:02:47]} 8. dxc5 {[%clk 0:02:54]}  O-O {[%clk 0:02:45]} 9. O-O {[%clk 0:02:54]}  Bxc5 {[%clk 0:02:44]} 10. Nb3 {[%clk 0:02:54]}  Bb6 {[%clk 0:02:43]} 11. Bg5 {[%clk 0:02:54]}  h6 {[%clk 0:02:39]} 12. Bh4 {[%clk 0:02:53]}  g5 {[%clk 0:02:37]} 13. Bg3 {[%clk 0:02:53]}  Nc6 {[%clk 0:02:33]} 14. Rad1 {[%clk 0:02:51]}  a6 {[%clk 0:02:25]} 15. Bxc6 {[%clk 0:02:51]}  bxc6 {[%clk 0:02:13]} 16. Ne5 {[%clk 0:02:51]}  Rc8 {[%clk 0:01:52]} 17. Kh1 {[%clk 0:02:49]}  Bf5 {[%clk 0:01:51]} 18. f4 {[%clk 0:02:47]}  g4 {[%clk 0:01:49]} 19. Bh4 {[%clk 0:02:41]}  Qd6 {[%clk 0:01:47]} 20. c4 {[%clk 0:02:36]}  Rfe8 {[%clk 0:01:22]} 21. c5 {[%clk 0:02:32]}  Bxc5 {[%clk 0:01:20]} 22. Nxc5 {[%clk 0:02:32]}  Qxc5 {[%clk 0:01:08]} 23. Bxf6 {[%clk 0:02:31]}  h5 {[%clk 0:01:08]} 24. Qf2 {[%clk 0:02:28]}  Qd6 {[%clk 0:01:04]} 25. Qh4 {[%clk 0:02:27]}  Re6 {[%clk 0:01:04]} 26. Qg5+ {[%clk 0:02:26]}  Kf8 {[%clk 0:01:01]} 27. Qg7+ {[%clk 0:02:20]}  Ke8 {[%clk 0:01:01]} 28. Qxf7# {[%clk 0:02:20]} 1-0


[Site "https://www.chess.com"]

[Event "Titled Tuesday Blitz October 11 Late 2022"]
[White "Diaz Rosas, Julio Cesar"]
[Black "Arnold, Ken"]
[WhiteFideId "5105099"]
[BlackFideId "2056836"]
[WhiteElo "2246"]
[BlackElo "2358"]
[Result "1-0"]
[Round "06"]
[TimeControl "180+1"]
[Date "2022.10.12"]
[WhiteClock "0:00:07"]
[BlackClock "0:00:04"]

1. e4 {[%clk 0:03:00]}  c6 {[%clk 0:03:00]} 2. d4 {[%clk 0:03:00]}  d5 {[%clk 0:03:00]} 3. exd5 {[%clk 0:03:01]}  cxd5 {[%clk 0:03:01]} 4. Bd3 {[%clk 0:03:01]}  Nf6 {[%clk 0:03:01]} 5. h3 {[%clk 0:03:01]}  Nc6 {[%clk 0:03:01]} 6. Nf3 {[%clk 0:03:02]}  g6 {[%clk 0:03:01]} 7. O-O {[%clk 0:03:02]}  Bg7 {[%clk 0:03:01]} 8. Re1 {[%clk 0:03:02]}  O-O {[%clk 0:03:02]} 9. Nc3 {[%clk 0:03:03]}  a6 {[%clk 0:03:00]} 10. Bf4 {[%clk 0:03:01]}  b5 {[%clk 0:02:59]} 11. a3 {[%clk 0:02:59]}  Bb7 {[%clk 0:02:58]} 12. Qd2 {[%clk 0:02:51]}  Na5 {[%clk 0:02:56]} 13. Bh6 {[%clk 0:02:50]}  e6 {[%clk 0:02:53]} 14. Bxg7 {[%clk 0:02:48]}  Kxg7 {[%clk 0:02:53]} 15. Qf4 {[%clk 0:02:48]}  Rc8 {[%clk 0:02:46]} 16. Ne2 {[%clk 0:02:47]}  Qc7 {[%clk 0:02:44]} 17. Ne5 {[%clk 0:02:46]}  Nc4 {[%clk 0:02:41]} 18. b3 {[%clk 0:02:41]}  Nxe5 {[%clk 0:02:39]} 19. dxe5 {[%clk 0:02:42]}  Nd7 {[%clk 0:02:39]} 20. Nd4 {[%clk 0:02:40]}  Qc5 {[%clk 0:02:07]} 21. h4 {[%clk 0:02:38]}  h5 {[%clk 0:01:54]} 22. Re3 {[%clk 0:02:34]}  Qe7 {[%clk 0:01:52]} 23. Rg3 {[%clk 0:02:26]}  Nc5 {[%clk 0:01:42]} 24. Re1 {[%clk 0:02:19]}  Ne4 {[%clk 0:01:40]} 25. Bxe4 {[%clk 0:01:59]}  dxe4 {[%clk 0:01:39]} 26. Rg5 {[%clk 0:02:00]}  Rfd8 {[%clk 0:01:34]} 27. Ne2 {[%clk 0:01:47]}  Rxc2 {[%clk 0:01:24]} 28. Ng3 {[%clk 0:01:47]}  Rh8 {[%clk 0:01:20]} 29. Re3 {[%clk 0:01:32]}  Bd5 {[%clk 0:01:09]} 30. Nxe4 {[%clk 0:01:26]}  Bxe4 {[%clk 0:01:08]} 31. Qxe4 {[%clk 0:01:27]}  Rc1+ {[%clk 0:01:00]} 32. Kh2 {[%clk 0:01:26]}  Qxa3 {[%clk 0:00:49]} 33. Rf3 {[%clk 0:01:24]}  Qe7 {[%clk 0:00:38]} 34. Rf6 {[%clk 0:01:22]}  Rh6 {[%clk 0:00:38]} 35. Rg3 {[%clk 0:01:18]}  Rc7 {[%clk 0:00:37]} 36. Rgf3 {[%clk 0:01:16]}  Rh8 {[%clk 0:00:29]} 37. Rg3 {[%clk 0:01:09]}  Rh6 {[%clk 0:00:24]} 38. Qd3 {[%clk 0:01:05]}  Rd7 {[%clk 0:00:23]} 39. Qe3 {[%clk 0:01:01]}  Rh7 {[%clk 0:00:21]} 40. Qg5 {[%clk 0:00:59]}  Kg8 {[%clk 0:00:20]} 41. Rgf3 {[%clk 0:00:55]}  Rg7 {[%clk 0:00:20]} 42. Qe3 {[%clk 0:00:54]}  Qd8 {[%clk 0:00:18]} 43. Qc3 {[%clk 0:00:49]}  Qc7 {[%clk 0:00:18]} 44. Qb2 {[%clk 0:00:45]}  Rd5 {[%clk 0:00:17]} 45. Re3 {[%clk 0:00:44]}  Qd7 {[%clk 0:00:15]} 46. Qa3 {[%clk 0:00:39]}  Rd2 {[%clk 0:00:14]} 47. Qxa6 {[%clk 0:00:36]}  Qd4 {[%clk 0:00:14]} 48. Qa8+ {[%clk 0:00:27]}  Kh7 {[%clk 0:00:14]} 49. Re4 {[%clk 0:00:27]}  Qb2 {[%clk 0:00:11]} 50. Kg3 {[%clk 0:00:23]}  Qxb3+ {[%clk 0:00:11]} 51. Re3 {[%clk 0:00:22]}  Rd3 {[%clk 0:00:11]} 52. Rff3 {[%clk 0:00:23]}  Rxe3 {[%clk 0:00:11]} 53. Rxe3 {[%clk 0:00:24]}  Qc4 {[%clk 0:00:11]} 54. Qd8 {[%clk 0:00:21]}  Qg4+ {[%clk 0:00:11]} 55. Kh2 {[%clk 0:00:21]}  b4 {[%clk 0:00:12]} 56. Qb6 {[%clk 0:00:17]}  Qxh4+ {[%clk 0:00:11]} 57. Kg1 {[%clk 0:00:17]}  Qf4 {[%clk 0:00:11]} 58. Rd3 {[%clk 0:00:16]}  g5 {[%clk 0:00:11]} 59. Rd4 {[%clk 0:00:15]}  Qf5 {[%clk 0:00:11]} 60. Qxb4 {[%clk 0:00:14]}  g4 {[%clk 0:00:11]} 61. Qd2 {[%clk 0:00:14]}  Qxe5 {[%clk 0:00:11]} 62. Qd3+ {[%clk 0:00:13]}  Qf5 {[%clk 0:00:11]} 63. Qe3 {[%clk 0:00:13]}  Qg5 {[%clk 0:00:11]} 64. Qe4+ {[%clk 0:00:12]}  Qg6 {[%clk 0:00:11]} 65. Qe5 {[%clk 0:00:12]}  h4 {[%clk 0:00:11]} 66. Rf4 {[%clk 0:00:11]}  f5 {[%clk 0:00:10]} 67. Rd4 {[%clk 0:00:11]}  Rf7 {[%clk 0:00:10]} 68. Rd8 {[%clk 0:00:10]}  Qf6 {[%clk 0:00:09]} 69. Qb8 {[%clk 0:00:10]}  Qg7 {[%clk 0:00:09]} 70. Rc8 {[%clk 0:00:07]}  h3 {[%clk 0:00:08]} 71. Qg3 {[%clk 0:00:07]}  hxg2 {[%clk 0:00:08]} 72. Qh4+ {[%clk 0:00:07]}  Qh6 {[%clk 0:00:08]} 73. Rh8+ {[%clk 0:00:07]}  Kxh8 {[%clk 0:00:09]} 74. Qxh6+ {[%clk 0:00:07]}  Kg8 {[%clk 0:00:06]} 75. Qxe6 {[%clk 0:00:07]}  Kg7 {[%clk 0:00:07]} 76. Kxg2 {[%clk 0:00:08]}  f4 {[%clk 0:00:07]} 77. Qxg4+ {[%clk 0:00:07]}  Kf8 {[%clk 0:00:07]} 78. Kf3 {[%clk 0:00:08]}  Ke7 {[%clk 0:00:06]} 79. Qg5+ {[%clk 0:00:08]}  Ke6 {[%clk 0:00:06]} 80. Ke4 {[%clk 0:00:09]}  f3 {[%clk 0:00:06]} 81. Qd5+ {[%clk 0:00:08]}  Ke7 {[%clk 0:00:06]} 82. Ke5 {[%clk 0:00:08]}  Kf8 {[%clk 0:00:06]} 83. Qd6+ {[%clk 0:00:08]}  Kg7 {[%clk 0:00:06]} 84. Qe6 {[%clk 0:00:08]}  Rf8 {[%clk 0:00:05]} 85. Qe7+ {[%clk 0:00:08]}  Rf7 {[%clk 0:00:06]} 86. Qg5+ {[%clk 0:00:08]}  Kf8 {[%clk 0:00:06]} 87. Ke6 {[%clk 0:00:08]}  Ra7 {[%clk 0:00:04]} 88. Qc5+ {[%clk 0:00:07]} 1-0


[Site "https://www.chess.com"]

[Event "Titled Tuesday Blitz October 11 Late 2022"]
[White "Evdokimov, Alexey"]
[Black "Djordjevic, Dejan N"]
[WhiteFideId "24162450"]
[BlackFideId "913316"]
[WhiteElo "2154"]
[BlackElo "2262"]
[Result "0-1"]
[Round "06"]
[TimeControl "180+1"]
[Date "2022.10.12"]
[WhiteClock "0:00:02"]
[BlackClock "0:00:47"]

1. e4 {[%clk 0:03:00]}  c5 {[%clk 0:02:59]} 2. Nf3 {[%clk 0:02:59]}  Nc6 {[%clk 0:02:59]} 3. d4 {[%clk 0:03:00]}  cxd4 {[%clk 0:02:59]} 4. Nxd4 {[%clk 0:03:01]}  Nf6 {[%clk 0:02:59]} 5. Nc3 {[%clk 0:03:00]}  Qb6 {[%clk 0:02:59]} 6. Nb3 {[%clk 0:02:55]}  e6 {[%clk 0:02:59]} 7. Be3 {[%clk 0:02:54]}  Qc7 {[%clk 0:02:58]} 8. Be2 {[%clk 0:02:54]}  a6 {[%clk 0:02:58]} 9. a4 {[%clk 0:02:53]}  b6 {[%clk 0:02:57]} 10. O-O {[%clk 0:02:46]}  Bb4 {[%clk 0:02:56]} 11. Nd5 {[%clk 0:02:38]}  exd5 {[%clk 0:02:48]} 12. exd5 {[%clk 0:02:38]}  Ne7 {[%clk 0:02:41]} 13. Bf3 {[%clk 0:02:27]}  Bd6 {[%clk 0:02:38]} 14. a5 {[%clk 0:02:23]}  bxa5 {[%clk 0:02:24]} 15. Re1 {[%clk 0:02:22]}  O-O {[%clk 0:02:23]} 16. Nxa5 {[%clk 0:02:19]}  Ng6 {[%clk 0:02:19]} 17. b3 {[%clk 0:02:09]}  Rb8 {[%clk 0:02:08]} 18. Nc4 {[%clk 0:02:08]}  Bxh2+ {[%clk 0:02:05]} 19. Kh1 {[%clk 0:02:08]}  Bd6 {[%clk 0:02:05]} 20. Qd4 {[%clk 0:01:45]}  Bb7 {[%clk 0:01:58]} 21. Rad1 {[%clk 0:01:38]}  Rbe8 {[%clk 0:01:53]} 22. Qb6 {[%clk 0:01:15]}  Qxb6 {[%clk 0:01:51]} 23. Bxb6 {[%clk 0:01:15]}  Bb4 {[%clk 0:01:41]} 24. Rxe8 {[%clk 0:01:00]}  Rxe8 {[%clk 0:01:40]} 25. c3 {[%clk 0:00:58]}  Bxc3 {[%clk 0:01:39]} 26. Nd6 {[%clk 0:00:58]}  Re1+ {[%clk 0:01:12]} 27. Rxe1 {[%clk 0:00:56]}  Bxe1 {[%clk 0:01:12]} 28. Nxb7 {[%clk 0:00:56]}  Ne5 {[%clk 0:01:11]} 29. d6 {[%clk 0:00:43]}  Nxf3 {[%clk 0:01:05]} 30. gxf3 {[%clk 0:00:42]}  Bb4 {[%clk 0:01:04]} 31. Nc5 {[%clk 0:00:20]}  Bxc5 {[%clk 0:01:02]} 32. Bxc5 {[%clk 0:00:20]}  Nd5 {[%clk 0:01:02]} 33. b4 {[%clk 0:00:08]}  f5 {[%clk 0:01:01]} 34. Kg2 {[%clk 0:00:06]}  g5 {[%clk 0:01:00]} 35. Kf1 {[%clk 0:00:04]}  Kf7 {[%clk 0:00:59]} 36. Ke2 {[%clk 0:00:05]}  Ke6 {[%clk 0:00:59]} 37. Kd3 {[%clk 0:00:05]}  h5 {[%clk 0:00:58]} 38. Kc4 {[%clk 0:00:04]}  h4 {[%clk 0:00:58]} 39. Bd4 {[%clk 0:00:01]}  h3 {[%clk 0:00:57]} 40. f4 {[%clk 0:00:02]}  Nxf4 {[%clk 0:00:47]} 0-1


[Site "https://www.chess.com"]

[Event "Titled Tuesday Blitz October 11 Late 2022"]
[White "Floresvillar Gonzalez, Luis Migu"]
[Black "Izuzquiza Gonzalez, Javier"]
[WhiteFideId "5100542"]
[BlackFideId "3101029"]
[WhiteElo "2040"]
[BlackElo "2034"]
[Result "0-1"]
[Round "06"]
[TimeControl "180+1"]
[Date "2022.10.12"]
[WhiteClock "0:01:05"]
[BlackClock "0:00:57"]

1. c3 {[%clk 0:03:00]}  Nf6 {[%clk 0:02:52]} 2. d4 {[%clk 0:02:58]}  g6 {[%clk 0:02:51]} 3. Bg5 {[%clk 0:02:58]}  Bg7 {[%clk 0:02:51]} 4. Nd2 {[%clk 0:02:58]}  d5 {[%clk 0:02:50]} 5. e3 {[%clk 0:02:56]}  O-O {[%clk 0:02:45]} 6. h4 {[%clk 0:02:56]}  c5 {[%clk 0:02:43]} 7. Be2 {[%clk 0:02:55]}  Nbd7 {[%clk 0:02:42]} 8. h5 {[%clk 0:02:55]}  e5 {[%clk 0:02:42]} 9. hxg6 {[%clk 0:02:55]}  fxg6 {[%clk 0:02:39]} 10. dxc5 {[%clk 0:02:46]}  Nxc5 {[%clk 0:02:32]} 11. Ngf3 {[%clk 0:02:46]}  Qe8 {[%clk 0:02:28]} 12. Qc2 {[%clk 0:02:42]}  Bf5 {[%clk 0:02:25]} 13. Qd1 {[%clk 0:02:26]}  Rd8 {[%clk 0:01:52]} 14. Bxf6 {[%clk 0:02:25]}  Bxf6 {[%clk 0:01:51]} 15. Nb3 {[%clk 0:02:25]}  Ne4 {[%clk 0:01:47]} 16. Nh4 {[%clk 0:02:12]}  Bxh4 {[%clk 0:01:32]} 17. Rxh4 {[%clk 0:02:11]}  Nxf2 {[%clk 0:01:32]} 18. Qc1 {[%clk 0:01:49]}  Bd3 {[%clk 0:01:27]} 19. Nc5 {[%clk 0:01:43]}  Bxe2 {[%clk 0:01:21]} 20. Kxe2 {[%clk 0:01:43]}  Qe7 {[%clk 0:01:19]} 21. Nxb7 {[%clk 0:01:23]}  Qxh4 {[%clk 0:01:16]} 22. Nxd8 {[%clk 0:01:23]}  Qg4+ {[%clk 0:01:05]} 23. Kd2 {[%clk 0:01:20]}  Ne4+ {[%clk 0:01:04]} 24. Kc2 {[%clk 0:01:14]}  Qe2+ {[%clk 0:01:01]} 25. Kb3 {[%clk 0:01:12]}  Rxd8 {[%clk 0:01:00]} 26. Qd1 {[%clk 0:01:05]}  Rb8+ {[%clk 0:00:57]} 0-1


[Site "https://www.chess.com"]

[Event "Titled Tuesday Blitz October 11 Late 2022"]
[White "Gasparyan, David"]
[Black "Zochowski, Kacper"]
[WhiteFideId "13311980"]
[BlackFideId "1125494"]
[WhiteElo "2350"]
[BlackElo "2292"]
[Result "0-1"]
[Round "06"]
[TimeControl "180+1"]
[Date "2022.10.12"]
[WhiteClock "0:00:02"]
[BlackClock "0:01:38"]

1. d4 {[%clk 0:02:59]}  d6 {[%clk 0:02:59]} 2. e4 {[%clk 0:02:57]}  g6 {[%clk 0:02:59]} 3. Nc3 {[%clk 0:02:57]}  Bg7 {[%clk 0:03:00]} 4. Be3 {[%clk 0:02:58]}  a6 {[%clk 0:03:00]} 5. Qd2 {[%clk 0:02:57]}  b5 {[%clk 0:03:00]} 6. a3 {[%clk 0:02:55]}  Nd7 {[%clk 0:03:00]} 7. h4 {[%clk 0:02:55]}  h6 {[%clk 0:03:00]} 8. Be2 {[%clk 0:02:52]}  Bb7 {[%clk 0:03:00]} 9. Nf3 {[%clk 0:02:49]}  Ngf6 {[%clk 0:02:59]} 10. Qd3 {[%clk 0:02:45]}  Ng4 {[%clk 0:02:57]} 11. O-O {[%clk 0:02:27]}  Nxe3 {[%clk 0:02:55]} 12. Qxe3 {[%clk 0:02:22]}  Nf6 {[%clk 0:02:55]} 13. e5 {[%clk 0:02:02]}  dxe5 {[%clk 0:02:46]} 14. dxe5 {[%clk 0:01:58]}  Nd5 {[%clk 0:02:47]} 15. Nxd5 {[%clk 0:01:57]}  Qxd5 {[%clk 0:02:48]} 16. Rad1 {[%clk 0:01:55]}  Qe6 {[%clk 0:02:44]} 17. Qc5 {[%clk 0:01:43]}  Qc6 {[%clk 0:02:17]} 18. Qxc6+ {[%clk 0:01:29]}  Bxc6 {[%clk 0:02:18]} 19. Nd4 {[%clk 0:01:29]}  Bb7 {[%clk 0:02:18]} 20. f4 {[%clk 0:01:29]}  O-O-O {[%clk 0:02:14]} 21. Nb3 {[%clk 0:01:27]}  f6 {[%clk 0:02:11]} 22. Nc5 {[%clk 0:01:19]}  fxe5 {[%clk 0:02:07]} 23. Rxd8+ {[%clk 0:01:00]}  Rxd8 {[%clk 0:02:05]} 24. Bg4+ {[%clk 0:00:47]}  Kb8 {[%clk 0:02:05]} 25. Ne6 {[%clk 0:00:47]}  Rg8 {[%clk 0:02:00]} 26. Nxg7 {[%clk 0:00:48]}  Rxg7 {[%clk 0:02:00]} 27. fxe5 {[%clk 0:00:48]}  Bd5 {[%clk 0:01:58]} 28. Rf8+ {[%clk 0:00:45]}  Kb7 {[%clk 0:01:58]} 29. Bc8+ {[%clk 0:00:33]}  Kb6 {[%clk 0:01:57]} 30. Bd7 {[%clk 0:00:24]}  g5 {[%clk 0:01:53]} 31. h5 {[%clk 0:00:24]}  g4 {[%clk 0:01:53]} 32. Rh8 {[%clk 0:00:21]}  Rg5 {[%clk 0:01:49]} 33. Rxh6+ {[%clk 0:00:21]}  Kc5 {[%clk 0:01:46]} 34. e6 {[%clk 0:00:18]}  g3 {[%clk 0:01:45]} 35. Rh8 {[%clk 0:00:15]}  Re5 {[%clk 0:01:45]} 36. Rf8 {[%clk 0:00:11]}  Re1+ {[%clk 0:01:44]} 37. Rf1 {[%clk 0:00:11]}  Re2 {[%clk 0:01:45]} 38. Rd1 {[%clk 0:00:07]}  Rxg2+ {[%clk 0:01:45]} 39. Kf1 {[%clk 0:00:08]}  Rh2 {[%clk 0:01:44]} 40. Rxd5+ {[%clk 0:00:01]}  Kxd5 {[%clk 0:01:43]} 41. Be8 {[%clk 0:00:02]}  Ke4 {[%clk 0:01:38]} 0-1


[Site "https://www.chess.com"]